bitfinex/quotes_SOLUSD_20250306
["timestamp","ask_amount","ask_price","bid_price","bid_amount"]
[1741269842012,80.8,147.67,147.65,37.86479208]
[1741269842387,94.08,147.69,147.65,37.86479208]
[1741269842388,88.58,147.69,147.65,37.86479208]
[1741269842719,80.8,147.69,147.67,0.14216157]
[1741269843224,80.8,147.69,147.66,0.14216157]
[1741269843395,0.03,147.7,147.66,31.09229208]
[1741269843730,80.83,147.7,147.68,0.14216157]
[1741269844194,80.83,147.7,147.67,0.14216157]
[1741269844396,80.83,147.7,147.69,312.14216157]
[1741269845194,87.6004,147.7,147.69,312.14216157]
[1741269845793,80.83,147.7,147.69,312.14216157]
[1741269846305,87.6004,147.7,147.69,312.14216157]
[1741269847127,6.8004,147.7,147.69,312.14216157]
[1741269847349,6.8004,147.7,147.63,30.95013051]
[1741269847491,6.8004,147.7,147.61,30.95013051]
[1741269847492,167.1,147.69,147.61,30.95013051]
[1741269847690,167.1,147.69,147.62,30.95013051]
[1741269847890,167.1,147.69,147.63,0.14216157]
[1741269848091,23.7266,147.7,147.61,30.95013051]
[1741269848092,190.7997,147.68,147.61,30.95013051]
[1741269848297,190.7997,147.68,147.62,0.14216157]
[1741269848511,7.76,147.67,147.62,0.14216157]
[1741269848713,80.8,147.66,147.62,0.14216157]
[1741269848907,80.8,147.66,147.63,0.14216157]
[1741269849291,80.8,147.66,147.63,31.37661522]
[1741269849494,80.8,147.68,147.65,0.14216157]
[1741269849698,0.03,147.7,147.68,0.14216157]
[1741269850205,0.03,147.7,147.69,312.14216157]
[1741269851737,0.03,147.7,147.69,0.14216157]
[1741269852222,86.33,147.7,147.69,0.14216157]
[1741269853915,86.33,147.7,147.61,37.72453051]
[1741269854224,23.6997,147.68,147.61,30.95013051]
[1741269854425,23.6997,147.68,147.62,0.14216157]
[1741269854604,6.7713,147.68,147.65,0.14216157]
[1741269854915,86.3,147.67,147.65,0.14216157]
[1741269855115,7.76,147.69,147.65,31.09229208]
[1741269855323,7.76,147.69,147.65,0.14216157]
[1741269855541,6.7709,147.69,147.65,0.14216157]
[1741269855896,6.8006,147.7,147.66,0.14216157]
[1741269856319,6.8006,147.7,147.65,0.14216157]
[1741269857108,6.8006,147.7,147.65,31.09229208]
[1741269857422,6.8006,147.7,147.65,0.14216157]
[1741269858019,6.8006,147.7,147.64,0.14216157]
[1741269858220,80.8,147.69,147.66,312.0]
[1741269858402,6.7713,147.68,147.62,37.72393051]
[1741269858720,6.7713,147.68,147.63,31.09229208]
[1741269858721,80.8,147.67,147.63,31.09229208]
[1741269859122,80.8,147.67,147.65,0.14216157]
[1741269859324,80.8,147.67,147.65,31.09229208]
[1741269859803,80.8,147.67,147.65,0.14216157]
[1741269859999,80.83,147.67,147.63,0.14216157]
[1741269860205,80.8,147.66,147.63,0.14216157]
[1741269860519,87.5725,147.66,147.63,0.14216157]
[1741269860704,87.5725,147.66,147.62,0.14216157]
[1741269861024,80.8,147.65,147.61,30.95013051]
[1741269861210,80.8,147.65,147.62,0.14216157]
[1741269861524,80.8,147.65,147.64,312.14216157]
[1741269861721,93.0725,147.66,147.64,312.0]
[1741269862103,86.3,147.66,147.64,312.0]
[1741269862299,86.3,147.66,147.65,0.14216157]
[1741269862525,93.0723,147.66,147.65,0.14216157]
[1741269863021,86.3,147.65,147.61,0.14216157]
[1741269863720,94.06,147.65,147.59,0.24624235]
[1741269863920,94.06,147.65,147.6,0.14216157]
[1741269864125,94.06,147.65,147.59,0.24624235]
[1741269864341,6.7732,147.64,147.59,7.02174235]
[1741269864630,94.06,147.65,147.6,0.14216157]
[1741269864924,100.8329,147.65,147.6,0.14216157]
[1741269865501,117.7648,147.65,147.59,0.24624235]
[1741269865699,86.58432314,147.64,147.59,0.033]
[1741269865913,86.58432314,147.64,147.59,312.033]
[1741269866333,23.7094,147.62,147.59,312.033]
[1741269866533,167.1,147.61,147.59,312.033]
[1741269867129,167.1,147.61,147.6,0.14216157]
[1741269868725,173.8746,147.61,147.6,0.14216157]
[1741269868926,173.8746,147.61,147.59,0.033]
[1741269870020,80.8,147.6,147.59,0.033]
[1741269870229,80.8,147.6,147.59,31.12529208]
[1741269870520,80.8,147.63,147.59,37.90079208]
[1741269870726,87.5738,147.63,147.6,31.09229208]
[1741269871039,87.5738,147.63,147.6,0.14216157]
[1741269871222,87.5738,147.63,147.59,0.033]
[1741269871413,80.8,147.63,147.6,0.14216157]
[1741269871820,80.8,147.63,147.62,0.14216157]
[1741269872026,100.8332,147.64,147.62,0.14216157]
[1741269872838,100.8332,147.64,147.6,0.14216157]
[1741269873012,94.06,147.64,147.6,0.14216157]
[1741269873214,94.06,147.64,147.6,31.09229208]
[1741269873420,86.3,147.64,147.6,31.09229208]
[1741269873624,86.3,147.64,147.6,0.14216157]
[1741269873832,93.0734,147.64,147.59,0.17516157]
[1741269874136,80.8,147.62,147.59,0.17516157]
[1741269874544,80.8,147.62,147.59,6.95046157]
[1741269874848,80.8,147.62,147.59,0.17516157]
[1741269875020,80.8,147.61,147.59,0.033]
[1741269875220,80.8,147.6,147.59,0.033]
[1741269875831,80.8,147.6,147.59,312.17516157]
[1741269876333,80.8,147.6,147.59,0.17516157]
[1741269876929,87.575,147.6,147.59,0.17516157]
[1741269877131,87.575,147.6,147.59,0.033]
[1741269877334,80.8,147.6,147.59,0.033]
[1741269878433,80.8,147.64,147.6,0.14216157]
[1741269878633,80.8,147.64,147.63,0.14216157]
[1741269879330,80.8,147.64,147.63,331.46584469]
[1741269880317,0.03,147.67,147.64,0.14216157]
[1741269880540,0.03,147.67,147.66,31.0266902]
[1741269880834,0.03,147.67,147.66,0.14216157]
[1741269881415,0.03,147.67,147.66,31.0266902]
[1741269881835,0.03,147.67,147.66,0.14216157]
[1741269883537,0.03,147.67,147.66,312.14216157]
[1741269884322,0.03,147.67,147.66,0.14216157]
[1741269886338,0.03,147.67,147.63,30.88452863]
[1741269886736,179.7771,147.66,147.64,0.14216157]
[1741269887041,179.7771,147.66,147.61,0.14216157]
[1741269887245,167.1,147.65,147.61,0.14216157]
[1741269887619,167.1,147.65,147.63,0.14216157]
[1741269888021,167.1,147.65,147.64,0.14216157]
[1741269888233,80.8,147.65,147.64,0.14216157]
[1741269888521,80.8,147.65,147.63,0.14216157]
[1741269889429,80.8,147.65,147.64,31.0266902]
[1741269889627,80.8,147.65,147.64,37.7998902]
[1741269890357,0.03,147.67,147.65,0.14216157]
[1741269890536,0.03,147.67,147.66,31.0266902]
[1741269890947,0.03,147.67,147.66,343.0266902]
[1741269891456,0.03,147.7,147.67,0.42648471]
[1741269891651,0.03,147.7,147.69,31.0266902]
[1741269891954,0.03,147.7,147.69,37.7975902]
[1741269892121,0.03,147.7,147.69,45.8763902]
[1741269892322,0.03,147.7,147.69,77.04524197]
[1741269892522,0.0001,147.7,147.69,77.04524197]
[1741269892824,0.03,147.72,147.71,20.42648471]
[1741269893048,0.03,147.72,147.71,51.31101334]
[1741269893649,0.03,147.72,147.71,58.08101334]
[1741269893951,0.03,147.74,147.72,0.42648471]
[1741269894245,0.03,147.74,147.73,31.0266902]
[1741269894546,0.03,147.74,147.73,343.0266902]
[1741269896139,0.03,147.74,147.73,349.7957902]
[1741269896344,0.03,147.74,147.73,350.08011334]
[1741269896719,0.03,147.74,147.73,349.7957902]
[1741269896924,0.03,147.74,147.73,343.0266902]
[1741269897226,0.03,147.74,147.73,350.08011334]
[1741269897740,0.03,147.74,147.73,343.0266902]
[1741269898234,0.03,147.74,147.73,312.14216157]
[1741269898749,0.03,147.74,147.73,312.0]
[1741269899124,0.03,147.74,147.73,312.14216157]
[1741269899525,0.03,147.74,147.65,38.47242863]
[1741269899526,86.3,147.73,147.65,38.47242863]
[1741269899745,86.3,147.72,147.65,38.47242863]
[1741269899948,6.77,147.71,147.66,0.14216157]
[1741269900332,6.77,147.71,147.61,8.2935]
[1741269900537,86.3,147.7,147.62,19.30905982]
[1741269900733,7.72,147.69,147.61,27.60255982]
[1741269900936,7.72,147.69,147.62,0.14216157]
[1741269901334,7.72,147.69,147.64,0.14216157]
[1741269901556,86.3,147.68,147.63,19.30905982]
[1741269901935,100.7895,147.73,147.67,19.30905982]
[1741269902134,86.3,147.72,147.68,0.14216157]
[1741269902535,86.3,147.72,147.71,312.14216157]
[1741269902734,14.4895,147.73,147.72,0.14216157]
[1741269902932,86.89972314,147.72,147.61,37.65949785]
[1741269903159,86.89972314,147.72,147.62,30.88509785]
[1741269903160,86.3,147.71,147.62,30.88509785]
[1741269903449,167.1,147.71,147.62,30.88509785]
[1741269903868,167.1,147.71,147.63,31.02725942]
[1741269904056,167.1,147.71,147.7,312.0]
[1741269904057,173.87,147.71,147.7,312.0]
[1741269904244,6.77,147.71,147.7,312.14216157]
[1741269905272,6.7695,147.72,147.71,0.14216157]
[1741269905644,86.3,147.72,147.68,0.14216157]
[1741269906253,86.3,147.72,147.67,0.14216157]
[1741269907075,86.3,147.72,147.65,0.14216157]
[1741269907248,6.77,147.71,147.67,0.14216157]
[1741269907446,93.0696,147.72,147.67,0.14216157]
[1741269908353,93.0696,147.72,147.71,312.14216157]
[1741269908548,6.7696,147.72,147.71,312.14216157]
[1741269908753,100.7892,147.73,147.72,0.14216157]
[1741269908955,93.0692,147.73,147.72,0.14216157]
[1741269909148,86.3,147.73,147.69,37.79775942]
[1741269909365,86.3,147.73,147.71,0.14216157]
[1741269909550,167.1,147.73,147.71,0.14216157]
[1741269909739,173.8692,147.73,147.71,0.14216157]
[1741269909943,173.8692,147.73,147.69,0.14216157]
[1741269910666,167.1,147.73,147.69,31.02725942]
[1741269910865,167.1,147.73,147.71,0.14216157]
[1741269911069,167.1,147.73,147.71,31.02725942]
[1741269911262,173.8692,147.73,147.69,0.14216157]
[1741269911863,173.8692,147.73,147.72,312.14216157]
[1741269912262,167.1,147.73,147.72,312.14216157]
[1741269912858,173.8691,147.73,147.72,312.14216157]
[1741269913255,7.05342314,147.73,147.72,312.0]
[1741269913970,6.7691,147.73,147.72,312.14216157]
[1741269914353,6.7987,147.74,147.72,312.14216157]
[1741269914553,0.03,147.74,147.71,31.02725942]
[1741269914747,0.03,147.74,147.71,0.14216157]
[1741269914959,6.7986,147.74,147.71,0.14216157]
[1741269915761,6.7986,147.74,147.7,0.14216157]
[1741269916154,23.7202,147.74,147.68,0.14216157]
[1741269916354,86.3,147.73,147.68,0.14216157]
[1741269916755,86.3,147.73,147.67,0.14216157]
[1741269917167,86.3,147.72,147.66,30.91809785]
[1741269917362,6.77,147.71,147.66,0.033]
[1741269917549,93.07,147.71,147.66,0.033]
[1741269917746,86.3,147.7,147.66,0.033]
[1741269917951,167.1,147.7,147.66,0.033]
[1741269919376,80.8,147.7,147.67,30.88509785]
[1741269919563,80.8,147.7,147.69,0.14216157]
[1741269920572,80.8,147.7,147.69,312.14216157]
[1741269920951,80.8,147.72,147.69,343.02725942]
[1741269921150,80.8,147.72,147.69,31.02725942]
[1741269921577,80.8,147.72,147.69,37.79815942]
[1741269923877,80.8,147.72,147.71,0.14216157]
[1741269924070,80.8,147.72,147.71,312.14216157]
[1741269926475,80.8,147.72,147.71,331.43620576]
[1741269926674,80.8,147.72,147.71,312.14216157]
[1741269927678,80.8,147.72,147.71,318.91216157]
[1741269927873,0.03,147.74,147.71,338.20620576]
[1741269928073,0.03,147.74,147.73,19.43620576]
[1741269929476,0.03,147.74,147.73,19.29404419]
[1741269929678,0.03,147.74,147.71,6.77]
[1741269929679,0.03,147.74,147.72,19.29404419]
[1741269929905,0.03,147.74,147.73,0.14216157]
[1741269930060,0.03,147.74,147.73,19.43620576]
[1741269931068,0.03,147.74,147.73,331.43620576]
[1741269931469,0.03,147.74,147.73,312.14216157]
[1741269931659,0.03,147.74,147.73,312.0]
[1741269931858,80.83,147.74,147.73,312.0]
[1741269932270,80.83,147.74,147.73,312.14216157]
[1741269932657,0.03,147.74,147.73,312.0]
[1741269933071,0.03,147.74,147.73,312.14216157]
[1741269933270,0.03,147.74,147.73,312.0]
[1741269933775,0.03,147.74,147.73,312.14216157]
[1741269933982,0.03,147.74,147.73,312.0]
[1741269934163,0.03,147.74,147.73,312.14216157]
[1741269935168,0.31432314,147.74,147.73,312.0]
[1741269935377,0.28432314,147.72,147.69,0.033]
[1741269935571,12.9703,147.73,147.69,0.033]
[1741269935981,7.05382314,147.72,147.69,0.033]
[1741269936380,23.97772314,147.72,147.71,312.0]
[1741269936683,23.97772314,147.72,147.71,312.14216157]
[1741269937589,23.97772314,147.72,147.71,0.14216157]
[1741269937883,23.97772314,147.72,147.69,0.033]
[1741269938573,20.0,147.7,147.69,0.033]
[1741269939175,20.0,147.69,147.66,0.033]
[1741269939490,174.8,147.68,147.66,0.033]
[1741269940279,181.5715,147.68,147.66,0.033]
[1741269940489,20.0,147.64,147.58,0.033]
[1741269940668,167.38432314,147.63,147.58,0.033]
[1741269940863,7.7,147.62,147.58,0.033]
[1741269941694,7.98432314,147.62,147.61,312.14216157]
[1741269942102,32.59842314,147.6,147.58,0.033]
[1741269943201,32.59842314,147.6,147.59,312.17516157]
[1741269943504,0.28432314,147.59,147.58,0.033]
[1741269944201,7.05982314,147.59,147.58,0.033]
[1741269944396,26.31402314,147.59,147.49,0.033]
[1741269944794,0.28432314,147.57,147.49,0.033]
[1741269944992,7.7,147.56,147.49,0.033]
[1741269945385,0.28432314,147.55,147.49,0.033]
[1741269945584,7.7,147.56,147.5,0.14216157]
[1741269945786,0.28432314,147.55,147.5,0.14216157]
[1741269945987,20.0,147.53,147.5,0.14216157]
[1741269946187,167.1,147.52,147.49,0.17516157]
[1741269947111,167.38432314,147.51,147.49,0.033]
[1741269947315,7.7,147.5,147.49,0.033]
[1741269947606,27.7,147.5,147.49,0.033]
[1741269948185,34.4796,147.5,147.49,0.033]
[1741269948595,27.7,147.5,147.49,0.033]
[1741269948898,27.7,147.5,147.49,312.17516157]
[1741269949706,114.0,147.5,147.49,312.17516157]
[1741269950612,120.7796,147.5,147.49,312.17516157]
[1741269951011,14.76392314,147.5,147.49,312.033]
[1741269951392,14.76392314,147.5,147.49,312.17516157]
[1741269952193,7.7,147.5,147.49,312.17516157]
[1741269952700,34.76392314,147.5,147.49,312.17516157]
[1741269952897,14.76392314,147.5,147.49,312.17516157]
[1741269953097,20.0,147.47,147.44,0.033]
[1741269953704,80.8,147.46,147.44,0.033]
[1741269954100,81.08432314,147.46,147.45,312.0]
[1741269954293,87.86582314,147.46,147.45,312.0]
[1741269954494,7.06582314,147.46,147.45,312.0]
[1741269954794,7.06582314,147.46,147.45,312.14216157]
[1741269955991,0.28432314,147.44,147.43,0.033]
[1741269956211,7.98432314,147.44,147.43,0.033]
[1741269956426,14.76672314,147.44,147.43,0.033]
[1741269956802,7.7,147.44,147.43,0.033]
[1741269957006,7.7,147.44,147.43,312.17516157]
[1741269957518,7.7,147.44,147.43,343.14213786]
[1741269958812,86.3,147.45,147.44,0.14216157]
[1741269959120,86.58432314,147.44,147.43,0.033]
[1741269959292,86.58432314,147.44,147.41,0.033]
[1741269959293,0.28432314,147.42,147.41,0.033]
[1741269959498,0.28432314,147.42,147.38,0.033]
[1741269959699,94.0,147.41,147.38,0.033]
[1741269959933,0.28432314,147.4,147.38,0.033]
[1741269960404,167.1,147.39,147.38,0.033]
[1741269960611,7.06902314,147.39,147.38,0.033]
[1741269961223,0.28432314,147.38,147.35,0.033]
[1741269961428,7.06902314,147.39,147.35,0.033]
[1741269961429,167.1,147.37,147.35,0.033]
[1741269961603,80.8,147.37,147.36,31.10913786]
[1741269961907,80.8,147.39,147.37,0.14216157]
[1741269962111,80.8,147.39,147.38,31.10913786]
[1741269962328,88.5,147.41,147.39,0.14216157]
[1741269962533,95.2838,147.41,147.39,0.14216157]
[1741269962833,95.2838,147.41,147.38,0.14216157]
[1741269963034,88.5,147.41,147.38,31.10913786]
[1741269963333,80.8,147.41,147.4,39.01553786]
[1741269963535,7.7,147.45,147.41,0.14216157]
[1741269963827,80.8,147.44,147.43,0.14216157]
[1741269964123,14.4821,147.45,147.4,7.9064]
[1741269964325,167.38432314,147.44,147.41,0.14216157]
[1741269964515,173.8828,147.43,147.41,0.14216157]
[1741269964709,173.8828,147.43,147.35,7.9394]
[1741269964710,167.38432314,147.42,147.35,7.9394]
[1741269965016,0.28432314,147.4,147.35,0.033]
[1741269965219,0.28432314,147.38,147.35,0.033]
[1741269965410,80.8,147.37,147.35,0.033]
[1741269965605,167.1,147.36,147.35,0.033]
[1741269966109,167.38432314,147.36,147.35,0.033]
[1741269966831,167.38432314,147.36,147.32,0.14216157]
[1741269966832,12.69202314,147.35,147.3,0.033]
[1741269967025,167.1,147.34,147.3,0.033]
[1741269967206,7.7,147.33,147.3,0.033]
[1741269967410,0.28432314,147.32,147.3,0.033]
[1741269967622,167.1,147.31,147.3,0.033]
[1741269968419,167.1,147.31,147.3,312.17516157]
[1741269968813,7.7,147.33,147.31,0.14216157]
[1741269969415,7.7,147.33,147.3,0.033]
[1741269969835,14.4875,147.33,147.3,0.033]
[1741269970037,167.1,147.32,147.3,0.033]
[1741269970911,80.8,147.32,147.31,31.10913786]
[1741269971132,80.8,147.36,147.31,31.10913786]
[1741269971332,80.8,147.36,147.34,0.14216157]
[1741269971533,79.49597203,147.36,147.34,31.10913786]
[1741269971711,79.49597203,147.38,147.36,0.14216157]
[1741269971911,85.1,147.4,147.36,0.14216157]
[1741269972110,14.4839,147.41,147.36,0.14216157]
[1741269972111,164.59597203,147.39,147.36,0.14216157]
[1741269972331,164.59597203,147.39,147.35,0.14216157]
[1741269972713,164.59597203,147.39,147.35,31.10913786]
[1741269972916,164.59597203,147.39,147.37,0.14216157]
[1741269973644,79.49597203,147.4,147.38,30.96697629]
[1741269973841,85.1,147.46,147.39,31.10913786]
[1741269973842,172.29597203,147.46,147.39,31.10913786]
[1741269974147,79.49597203,147.45,147.43,0.14216157]
[1741269974326,164.59597203,147.44,147.43,0.14216157]
[1741269974636,6.7833,147.42,147.36,0.14216157]
[1741269974813,79.49597203,147.41,147.38,0.14216157]
[1741269975014,79.49597203,147.4,147.39,31.10913786]
[1741269975238,164.59597203,147.43,147.4,0.14216157]
[1741269975430,79.49597203,147.42,147.4,31.10913786]
[1741269975637,79.49597203,147.42,147.38,0.14216157]
[1741269976013,164.59597203,147.41,147.36,30.96697629]
[1741269976331,79.49597203,147.4,147.36,0.14216157]
[1741269976523,79.49597203,147.39,147.38,0.14216157]
[1741269976718,85.1,147.42,147.38,31.10913786]
[1741269976924,91.8834,147.42,147.38,0.14216157]
[1741269977325,79.49597203,147.42,147.4,31.10913786]
[1741269977520,79.49597203,147.42,147.41,31.10913786]
[1741269978119,79.49597203,147.42,147.41,312.14216157]
[1741269978316,86.27927203,147.42,147.41,312.14216157]
[1741269978517,79.49597203,147.42,147.41,312.14216157]
[1741269978825,79.49597203,147.42,147.41,343.10913786]
[1741269979219,79.49597203,147.45,147.42,0.14216157]
[1741269979532,79.49597203,147.44,147.42,31.10913786]
[1741269979732,79.49597203,147.44,147.41,31.10913786]
[1741269980322,79.49597203,147.44,147.4,0.14216157]
[1741269980723,79.49597203,147.43,147.4,0.14216157]
[1741269981035,103.23757203,147.42,147.38,0.033]
[1741269981235,79.49597203,147.41,147.38,0.033]
[1741269981423,164.62597203,147.4,147.38,0.033]
[1741269982423,164.62597203,147.4,147.39,312.14216157]
[1741269982826,171.41017203,147.4,147.39,312.14216157]
[1741269983029,6.8142,147.4,147.39,312.0]
[1741269983227,166.18432314,147.39,147.38,0.033]
[1741269983426,165.9,147.38,147.31,7.7296]
[1741269983633,65.3761,147.4,147.32,0.14216157]
[1741269983634,165.9,147.39,147.32,0.14216157]
[1741269983831,165.9,147.39,147.33,30.96697629]
[1741269984015,165.9,147.39,147.32,30.96697629]
[1741269984736,165.9,147.39,147.35,30.96697629]
[1741269984967,80.8,147.38,147.36,0.14216157]
[1741269985140,87.5852,147.38,147.36,0.14216157]
[1741269985347,87.5852,147.38,147.34,0.14216157]
[1741269985642,80.8,147.38,147.36,0.14216157]
[1741269985843,87.5853,147.38,147.36,0.14216157]
[1741269986220,87.5853,147.38,147.37,312.14216157]
[1741269986221,80.8,147.38,147.37,312.14216157]
[1741269987433,87.5851,147.38,147.37,312.14216157]
[1741269987636,80.8,147.38,147.37,312.14216157]
[1741269988443,87.5851,147.38,147.37,312.14216157]
[1741269988624,80.8,147.38,147.37,312.14216157]
[1741269988942,91.8848,147.39,147.38,0.14216157]
[1741269990542,85.1,147.39,147.36,31.10913786]
[1741269990744,0.03,147.4,147.38,31.10913786]
[1741269990928,0.03,147.4,147.39,39.43983786]
[1741269992141,0.03,147.4,147.39,351.43983786]
[1741269992545,0.03,147.4,147.39,312.0]
[1741269993445,0.03,147.4,147.39,312.14216157]
[1741269994144,0.03,147.4,147.39,343.10913786]
[1741269994644,0.03,147.4,147.39,312.14216157]
[1741269995351,0.03,147.4,147.39,312.0]
[1741269995543,20.31432314,147.4,147.39,312.0]
[1741269995729,20.0,147.39,147.36,0.033]
[1741269995922,7.68,147.38,147.36,0.17516157]
[1741269996538,7.68,147.38,147.36,0.033]
[1741269996739,6.7856,147.37,147.36,0.033]
[1741269997142,6.7856,147.37,147.36,0.17516157]
[1741269997336,7.68,147.38,147.36,0.17516157]
[1741269997337,14.4653,147.38,147.36,0.17516157]
[1741269998765,14.4653,147.38,147.37,0.14216157]
[1741269999332,7.68,147.38,147.37,0.14216157]
[1741269999731,6.7849,147.39,147.36,30.99997629]
[1741269999925,6.7849,147.39,147.36,0.17516157]
[1741270000857,80.8,147.38,147.36,0.17516157]
[1741270001855,80.8,147.38,147.37,312.14216157]
[1741270002442,80.8,147.38,147.37,0.14216157]
[1741270003233,87.5851,147.38,147.37,0.14216157]
[1741270004170,6.7851,147.38,147.37,0.14216157]
[1741270004535,15.69973332,147.38,147.36,0.17516157]
[1741270004736,15.69973332,147.38,147.36,31.14213786]
[1741270004967,15.69973332,147.38,147.36,0.17516157]
[1741270005151,15.69973332,147.38,147.36,0.033]
[1741270005655,6.785,147.39,147.38,0.14216157]
[1741270006046,14.4944,147.4,147.36,0.17516157]
[1741270006643,14.4944,147.4,147.36,0.033]
[1741270007052,80.8,147.39,147.37,0.14216157]
[1741270007251,87.5848,147.39,147.37,0.14216157]
[1741270008148,87.5848,147.39,147.36,0.17516157]
[1741270008547,80.8,147.39,147.36,0.17516157]
[1741270008742,80.8,147.39,147.36,31.14213786]
[1741270009056,87.5847,147.39,147.38,312.14216157]
[1741270009548,80.8,147.39,147.38,312.14216157]
[1741270012453,80.8,147.39,147.38,343.10913786]
[1741270012653,80.8,147.39,147.38,312.14216157]
[1741270012851,0.03,147.4,147.39,14.75296157]
[1741270013057,0.03,147.4,147.39,45.71993786]
[1741270013253,80.8,147.46,147.43,0.14216157]
[1741270013457,80.8,147.46,147.45,31.10913786]
[1741270014245,85.1,147.47,147.45,31.10913786]
[1741270014246,80.8,147.49,147.46,0.14216157]
[1741270014461,165.9,147.52,147.48,31.10913786]
[1741270014660,80.8,147.51,147.48,0.14216157]
[1741270015566,87.5793,147.51,147.48,0.14216157]
[1741270015950,80.8,147.51,147.5,0.14216157]
[1741270016661,80.8,147.51,147.5,31.10913786]
[1741270017367,80.8,147.51,147.5,0.14216157]
[1741270018170,87.5792,147.51,147.5,0.14216157]
[1741270018567,6.7792,147.51,147.5,0.14216157]
[1741270019070,6.8092,147.51,147.5,0.14216157]
[1741270019661,6.8092,147.51,147.5,312.14216157]
[1741270020578,6.8092,147.51,147.5,0.14216157]
[1741270021269,6.8092,147.51,147.43,8.2094]
[1741270021270,85.38432314,147.5,147.43,8.2094]
[1741270021459,0.28432314,147.48,147.43,8.2094]
[1741270021660,6.7815,147.46,147.44,0.14216157]
[1741270021862,85.1,147.45,147.44,0.14216157]
[1741270022063,7.66,147.47,147.44,31.10913786]
[1741270022386,7.66,147.47,147.44,30.96697629]
[1741270022554,14.4411,147.47,147.45,0.14216157]
[1741270022871,85.1,147.46,147.4,38.95057629]
[1741270023072,85.1,147.45,147.4,38.95057629]
[1741270023280,31.3937,147.47,147.4,7.9836]
[1741270023281,85.1,147.44,147.4,7.9836]
[1741270023573,85.1,147.44,147.41,312.0]
[1741270023874,85.1,147.46,147.44,0.14216157]
[1741270024071,85.1,147.45,147.44,0.14216157]
[1741270024457,85.1,147.45,147.43,0.14216157]
[1741270024863,92.76,147.5,147.45,0.14216157]
[1741270025057,80.8,147.47,147.45,31.10913786]
[1741270025671,80.8,147.47,147.45,0.14216157]
[1741270025979,165.9,147.46,147.4,7.9836]
[1741270026174,165.9,147.45,147.41,30.96697629]
[1741270026477,165.9,147.45,147.4,38.95057629]
[1741270026659,173.56,147.44,147.4,7.9836]
[1741270027069,173.56,147.44,147.42,0.14216157]
[1741270027671,173.56,147.44,147.41,0.14216157]
[1741270027872,80.8,147.44,147.43,31.10913786]
[1741270028071,80.8,147.46,147.44,0.14216157]
[1741270028374,165.9,147.49,147.46,0.14216157]
[1741270028554,80.8,147.48,147.47,31.10913786]
[1741270028754,80.8,147.48,147.47,0.14216157]
[1741270029483,80.8,147.48,147.47,38.70943786]
[1741270029662,68.93418291,147.48,147.47,38.70943786]
[1741270029857,68.93418291,147.48,147.47,45.49043786]
[1741270030057,68.93418291,147.48,147.47,38.70943786]
[1741270030588,68.93418291,147.48,147.47,350.70943786]
[1741270031074,74.5,147.49,147.48,0.14216157]
[1741270031260,81.2801,147.49,147.48,0.14216157]
[1741270031455,74.78432314,147.48,147.43,7.6352]
[1741270031667,74.5,147.47,147.43,7.6352]
[1741270031871,74.5,147.47,147.43,38.60217629]
[1741270032176,74.5,147.47,147.44,30.96697629]
[1741270032476,74.5,147.47,147.45,0.14216157]
[1741270032860,81.2806,147.48,147.45,0.14216157]
[1741270033277,74.5,147.48,147.46,0.14216157]
[1741270033579,6.7803,147.49,147.46,0.14216157]
[1741270034277,6.7803,147.49,147.44,31.10913786]
[1741270034574,23.7306,147.49,147.43,7.6352]
[1741270034781,74.5,147.48,147.43,7.6352]
[1741270034967,74.5,147.47,147.43,7.6352]